[Event "Early-Titled-Tuesday-Blitz-October-24-2023"]
[Site "Chess.com"]
[Date "2023.10.24"]
[Round "2"]
[White "AlmasRakhmatullaev"]
[Black "jaskol95"]
[Result "1-0"]
[WhiteElo "2823"]
[BlackElo "2559"]
[TimeControl "180+1"]
[EndTime "8:16:54 PDT"]
[Termination "AlmasRakhmatullaev won on time"]

1. e4 {[%clk 0:03:00.2]} 1... d5 {[%clk 0:02:58.3]} 2. exd5 {[%clk 0:02:58.5]}
2... Nf6 {[%clk 0:02:58.9]} 3. Bb5+ {[%clk 0:02:57.9]} 3... Nbd7 {[%clk
0:02:58.8]} 4. Nc3 {[%clk 0:02:55.1]} 4... a6 {[%clk 0:02:59.4]} 5. Be2 {[%clk
0:02:49.1]} 5... Nb6 {[%clk 0:02:59.6]} 6. Nf3 {[%clk 0:02:45.6]} 6... Nbxd5
{[%clk 0:03:00]} 7. O-O {[%clk 0:02:44.2]} 7... Nxc3 {[%clk 0:02:59.7]} 8. bxc3
{[%clk 0:02:40.9]} 8... g6 {[%clk 0:03:00]} 9. c4 {[%clk 0:02:28.6]} 9... Bg7
{[%clk 0:02:57.9]} 10. Bb2 {[%clk 0:02:28.6]} 10... O-O {[%clk 0:02:57.8]} 11.
Rb1 {[%clk 0:02:28.3]} 11... b6 {[%clk 0:02:43.4]} 12. Ne5 {[%clk 0:02:25.8]}
12... Bb7 {[%clk 0:02:43.6]} 13. d4 {[%clk 0:02:25.7]} 13... Nd7 {[%clk
0:02:29.5]} 14. f4 {[%clk 0:02:22.9]} 14... Nxe5 {[%clk 0:02:25.6]} 15. fxe5
{[%clk 0:02:23.8]} 15... c5 {[%clk 0:02:26.1]} 16. d5 {[%clk 0:02:11.5]} 16...
e6 {[%clk 0:02:22.3]} 17. Bf3 {[%clk 0:01:59]} 17... Qh4 {[%clk 0:02:04.7]} 18.
Qe2 {[%clk 0:01:46.2]} 18... Rad8 {[%clk 0:01:54.6]} 19. Rbd1 {[%clk 0:01:27.6]}
19... Qe7 {[%clk 0:01:42.7]} 20. a4 {[%clk 0:01:16.5]} 20... Qd7 {[%clk
0:01:24.4]} 21. a5 {[%clk 0:00:41.7]} 21... bxa5 {[%clk 0:01:23.8]} 22. Qe3
{[%clk 0:00:41.2]} 22... Qa4 {[%clk 0:01:12.3]} 23. dxe6 {[%clk 0:00:27]} 23...
Rxd1 {[%clk 0:00:49.9]} 24. exf7+ {[%clk 0:00:17.1]} 24... Rxf7 {[%clk
0:00:45.8]} 25. Rxd1 {[%clk 0:00:17.3]} 25... Bxf3 {[%clk 0:00:40]} 26. gxf3
{[%clk 0:00:17.7]} 26... Qxc2 {[%clk 0:00:25.4]} 27. Rd2 {[%clk 0:00:16.6]}
27... Qf5 {[%clk 0:00:21]} 28. e6 {[%clk 0:00:14.6]} 28... Re7 {[%clk
0:00:15.8]} 29. Rd8+ {[%clk 0:00:14.2]} 29... Bf8 {[%clk 0:00:16.5]} 30. Qc3
{[%clk 0:00:10.3]} 30... Qg5+ {[%clk 0:00:03.9]} 31. Kf1 {[%clk 0:00:09.8]}
31... Re8 {[%clk 0:00:01]} 32. Rxe8 {[%clk 0:00:09.3]} 1-0

[Event "Early-Titled-Tuesday-Blitz-October-24-2023"]
[Site "Chess.com"]
[Date "2023.10.24"]
[Round "2"]
[White "GiorgianBarbosa"]
[Black "JimDiGrease"]
[Result "0-1"]
[WhiteElo "2401"]
[BlackElo "2875"]
[TimeControl "180+1"]
[EndTime "8:16:54 PDT"]
[Termination "JimDiGrease won on time"]

1. d4 {[%clk 0:03:00.9]} 1... d5 {[%clk 0:02:48]} 2. c4 {[%clk 0:02:59.3]} 2...
e6 {[%clk 0:02:48.3]} 3. Nc3 {[%clk 0:02:58.8]} 3... c6 {[%clk 0:02:48.4]} 4.
Nf3 {[%clk 0:02:55.6]} 4... Nf6 {[%clk 0:02:48.5]} 5. Bg5 {[%clk 0:02:45.2]}
5... dxc4 {[%clk 0:02:47.7]} 6. e3 {[%clk 0:02:44.2]} 6... b5 {[%clk 0:02:47.8]}
7. Be2 {[%clk 0:02:37.3]} 7... Bb7 {[%clk 0:02:47.5]} 8. O-O {[%clk 0:02:37]}
8... Nbd7 {[%clk 0:02:46.6]} 9. a4 {[%clk 0:02:36.2]} 9... a6 {[%clk 0:02:46.6]}
10. Qc2 {[%clk 0:02:26.7]} 10... Be7 {[%clk 0:02:45.8]} 11. e4 {[%clk
0:02:10.4]} 11... O-O {[%clk 0:02:45.4]} 12. e5 {[%clk 0:02:05.3]} 12... Nd5
{[%clk 0:02:45.6]} 13. Ne4 {[%clk 0:02:03.7]} 13... h6 {[%clk 0:02:34]} 14. Bxe7
{[%clk 0:01:58.6]} 14... Qxe7 {[%clk 0:02:34.9]} 15. Nd6 {[%clk 0:01:56.2]}
15... Rab8 {[%clk 0:02:32.1]} 16. axb5 {[%clk 0:01:31.8]} 16... cxb5 {[%clk
0:02:29.9]} 17. b3 {[%clk 0:01:20.9]} 17... cxb3 {[%clk 0:02:20.2]} 18. Qxb3
{[%clk 0:01:21.8]} 18... N7b6 {[%clk 0:02:04]} 19. Rfc1 {[%clk 0:01:10.7]} 19...
Nc8 {[%clk 0:01:32.9]} 20. Nxb7 {[%clk 0:01:04.6]} 20... Qxb7 {[%clk 0:01:33.8]}
21. Nd2 {[%clk 0:01:04.2]} 21... Nce7 {[%clk 0:01:20]} 22. Ne4 {[%clk
0:00:53.2]} 22... Nf5 {[%clk 0:01:19.5]} 23. Qb2 {[%clk 0:00:36]} 23... Rfd8
{[%clk 0:01:07.4]} 24. Bf3 {[%clk 0:00:35.1]} 24... Nh4 {[%clk 0:00:56.7]} 25.
Nc5 {[%clk 0:00:28.8]} 25... Nxf3+ {[%clk 0:00:55.4]} 26. gxf3 {[%clk
0:00:29.4]} 26... Qe7 {[%clk 0:00:56]} 27. Kh1 {[%clk 0:00:16.4]} 27... Qh4
{[%clk 0:00:37.8]} 28. Rg1 {[%clk 0:00:16.7]} 28... Qf4 {[%clk 0:00:30.1]} 29.
Rg3 {[%clk 0:00:15.4]} 29... Ne7 {[%clk 0:00:30.2]} 30. Rag1 {[%clk 0:00:09.6]}
30... Nf5 {[%clk 0:00:30.3]} 31. Rh3 {[%clk 0:00:07]} 31... Rxd4 {[%clk
0:00:28.1]} 32. Ne4 {[%clk 0:00:03.7]} 32... Qxe5 {[%clk 0:00:21.3]} 33. Qc1
{[%clk 0:00:02.1]} 33... Kf8 {[%clk 0:00:12.9]} 34. Rh4 {[%clk 0:00:01.4]} 34...
Nxh4 {[%clk 0:00:12]} 0-1

[Event "Early-Titled-Tuesday-Blitz-October-24-2023"]
[Site "Chess.com"]
[Date "2023.10.24"]
[Round "2"]
[White "Predator0608"]
[Black "alacritous"]
[Result "1-0"]
[WhiteElo "2504"]
[BlackElo "2251"]
[TimeControl "180+1"]
[EndTime "8:16:54 PDT"]
[Termination "Predator0608 won on time"]

1. e4 {[%clk 0:03:00.9]} 1... d6 {[%clk 0:02:59.1]} 2. d4 {[%clk 0:03:00.6]}
2... Nf6 {[%clk 0:02:59.5]} 3. Nc3 {[%clk 0:03:00.7]} 3... e5 {[%clk 0:02:59.3]}
4. Nf3 {[%clk 0:03:01.1]} 4... Nbd7 {[%clk 0:02:59]} 5. Bc4 {[%clk 0:03:01.3]}
5... Be7 {[%clk 0:02:58.8]} 6. O-O {[%clk 0:03:00.6]} 6... O-O {[%clk
0:02:58.4]} 7. a4 {[%clk 0:03:01.2]} 7... a5 {[%clk 0:02:57.7]} 8. Re1 {[%clk
0:02:51.9]} 8... c6 {[%clk 0:02:55.9]} 9. Be3 {[%clk 0:02:49.7]} 9... Ng4 {[%clk
0:02:53.7]} 10. h3 {[%clk 0:02:46.2]} 10... Nxe3 {[%clk 0:02:52.9]} 11. fxe3
{[%clk 0:02:47.1]} 11... Qc7 {[%clk 0:02:16.1]} 12. Rf1 {[%clk 0:02:43.4]} 12...
Kh8 {[%clk 0:02:12.9]} 13. Qe1 {[%clk 0:02:37.4]} 13... f5 {[%clk 0:02:12]} 14.
dxe5 {[%clk 0:02:31.4]} 14... Nxe5 {[%clk 0:02:06.7]} 15. Nxe5 {[%clk
0:02:30.5]} 15... dxe5 {[%clk 0:02:06.2]} 16. Qg3 {[%clk 0:02:29.5]} 16... Bc5
{[%clk 0:01:54.4]} 17. Kh1 {[%clk 0:02:19]} 17... f4 {[%clk 0:01:41.2]} 18. exf4
{[%clk 0:02:16.1]} 18... exf4 {[%clk 0:01:41.1]} 19. Qg5 {[%clk 0:02:10.6]}
19... Be7 {[%clk 0:01:34]} 20. Qh5 {[%clk 0:02:05.6]} 20... g6 {[%clk
0:01:25.1]} 21. Qh6 {[%clk 0:02:00]} 21... Bd7 {[%clk 0:01:22.1]} 22. Rad1
{[%clk 0:01:53.1]} 22... Rad8 {[%clk 0:01:19.1]} 23. Ne2 {[%clk 0:01:45.9]}
23... Qe5 {[%clk 0:01:05.1]} 24. Nxf4 {[%clk 0:01:37.6]} 24... Qg5 {[%clk
0:00:21.5]} 25. Qxg5 {[%clk 0:01:27.9]} 25... Bxg5 {[%clk 0:00:22.4]} 26. Nd3
{[%clk 0:01:28.7]} 26... Bc8 {[%clk 0:00:18.6]} 27. Ne5 {[%clk 0:01:26.6]} 27...
Kg7 {[%clk 0:00:16.1]} 28. Rxd8 {[%clk 0:01:23.5]} 28... Rxd8 {[%clk 0:00:15.1]}
29. Rf7+ {[%clk 0:01:22.8]} 29... Kh6 {[%clk 0:00:15.1]} 30. Rf1 {[%clk
0:01:19.9]} 30... Rd2 {[%clk 0:00:14.1]} 31. Nf7+ {[%clk 0:01:19.8]} 31... Kh5
{[%clk 0:00:13.2]} 32. Bd3 {[%clk 0:01:07.5]} 32... Be7 {[%clk 0:00:11.4]} 33.
e5 {[%clk 0:01:02.3]} 33... Kh4 {[%clk 0:00:11.3]} 34. Nd6 {[%clk 0:01:00.3]}
34... Be6 {[%clk 0:00:09.6]} 35. Ne4 {[%clk 0:00:51.9]} 35... Rxd3 {[%clk
0:00:08.5]} 36. cxd3 {[%clk 0:00:51.7]} 36... g5 {[%clk 0:00:07]} 37. Nf6 {[%clk
0:00:50.7]} 37... h5 {[%clk 0:00:05.7]} 38. Kh2 {[%clk 0:00:45]} 38... g4 {[%clk
0:00:05.7]} 39. g3+ {[%clk 0:00:45.4]} 39... Kg5 {[%clk 0:00:05.4]} 40. h4+
{[%clk 0:00:46.3]} 40... Kg6 {[%clk 0:00:05.1]} 41. Ne4 {[%clk 0:00:47.2]} 41...
Bf5 {[%clk 0:00:04.8]} 42. Kg2 {[%clk 0:00:47]} 42... b5 {[%clk 0:00:03.7]} 43.
Kf2 {[%clk 0:00:46]} 43... bxa4 {[%clk 0:00:03.1]} 44. Ra1 {[%clk 0:00:45.7]}
44... c5 {[%clk 0:00:01.1]} 45. Rxa4 {[%clk 0:00:45.2]} 45... Bd8 {[%clk
0:00:01.5]} 46. Nxc5 {[%clk 0:00:43.7]} 46... Bb6 {[%clk 0:00:02]} 47. d4 {[%clk
0:00:44.6]} 47... Bd7 {[%clk 0:00:01.4]} 48. Nxd7 {[%clk 0:00:44.3]} 1-0

[Event "Early-Titled-Tuesday-Blitz-October-24-2023"]
[Site "Chess.com"]
[Date "2023.10.24"]
[Round "2"]
[White "OLDTERMINATOR"]
[Black "Happy1712Drummer"]
[Result "0-1"]
[WhiteElo "1698"]
[BlackElo "2405"]
[TimeControl "180+1"]
[EndTime "8:16:54 PDT"]
[Termination "Happy1712Drummer won on time"]

1. e4 {[%clk 0:03:00.9]} 1... c5 {[%clk 0:02:59.1]} 2. Nf3 {[%clk 0:02:59.8]}
2... Nc6 {[%clk 0:02:59.2]} 3. d4 {[%clk 0:03:00.2]} 3... cxd4 {[%clk 0:02:59]}
4. Nxd4 {[%clk 0:03:00.6]} 4... Nf6 {[%clk 0:02:59.2]} 5. Nc3 {[%clk 0:03:00.5]}
5... e5 {[%clk 0:02:59.3]} 6. Ndb5 {[%clk 0:02:59.6]} 6... d6 {[%clk 0:02:59.9]}
7. Bg5 {[%clk 0:02:59.4]} 7... a6 {[%clk 0:02:59.6]} 8. Na3 {[%clk 0:02:58]}
8... b5 {[%clk 0:03:00.2]} 9. Nd5 {[%clk 0:02:57.9]} 9... Be7 {[%clk 0:03:00.9]}
10. Bxf6 {[%clk 0:02:57.9]} 10... Bxf6 {[%clk 0:03:01.8]} 11. c3 {[%clk
0:02:57.9]} 11... Rb8 {[%clk 0:03:01.9]} 12. Nc2 {[%clk 0:02:58.2]} 12... Bg5
{[%clk 0:03:02.5]} 13. a4 {[%clk 0:02:47]} 13... bxa4 {[%clk 0:02:59.6]} 14.
Rxa4 {[%clk 0:02:46.4]} 14... Rxb2 {[%clk 0:02:47.4]} 15. Bxa6 {[%clk
0:02:35.5]} 15... O-O {[%clk 0:02:34.8]} 16. O-O {[%clk 0:02:30.7]} 16... f5
{[%clk 0:01:53.7]} 17. exf5 {[%clk 0:02:00.8]} 17... Bxf5 {[%clk 0:01:53.4]} 18.
Bd3 {[%clk 0:02:00.4]} 18... Ne7 {[%clk 0:01:05.7]} 19. Nxe7+ {[%clk 0:01:41]}
19... Qxe7 {[%clk 0:00:27.6]} 20. Bxf5 {[%clk 0:01:36.3]} 20... Rxf5 {[%clk
0:00:28.5]} 21. Qd5+ {[%clk 0:01:25.4]} 21... Kh8 {[%clk 0:00:28.7]} 22. Ra8+
{[%clk 0:01:15.6]} 22... Rf8 {[%clk 0:00:27.6]} 23. Ne3 {[%clk 0:01:03.5]} 23...
Bxe3 {[%clk 0:00:20.3]} 24. fxe3 {[%clk 0:00:59.9]} 24... Rbb8 {[%clk
0:00:06.3]} 25. Rxf8+ {[%clk 0:00:08.6]} 25... Rxf8 {[%clk 0:00:05.6]} 26. Rxf8+
{[%clk 0:00:03.9]} 26... Qxf8 {[%clk 0:00:06.5]} 27. c4 {[%clk 0:00:03.4]} 27...
h6 {[%clk 0:00:06.7]} 28. h3 {[%clk 0:00:02.5]} 28... Qb8 {[%clk 0:00:06.8]} 29.
e4 {[%clk 0:00:01.3]} 29... Qb6+ {[%clk 0:00:06.6]} 30. Kh2 {[%clk 0:00:01.1]}
30... Kh7 {[%clk 0:00:06.7]} 0-1

[Event "Early-Titled-Tuesday-Blitz-October-24-2023"]
[Site "Chess.com"]
[Date "2023.10.24"]
[Round "2"]
[White "amanmuhammethommadov"]
[Black "KVAIDAN"]
[Result "1-0"]
[WhiteElo "2697"]
[BlackElo "2373"]
[TimeControl "180+1"]
[EndTime "8:16:55 PDT"]
[Termination "amanmuhammethommadov won by checkmate"]

1. e4 {[%clk 0:03:00.2]} 1... e5 {[%clk 0:02:48]} 2. Nf3 {[%clk 0:02:58.1]} 2...
d5 {[%clk 0:02:47.8]} 3. Nxe5 {[%clk 0:02:56.9]} 3... Bd6 {[%clk 0:02:47.2]} 4.
d4 {[%clk 0:02:56]} 4... dxe4 {[%clk 0:02:47.4]} 5. Bc4 {[%clk 0:02:56.3]} 5...
Bxe5 {[%clk 0:02:47.6]} 6. Qh5 {[%clk 0:02:56.7]} 6... Qe7 {[%clk 0:02:47.7]} 7.
Qxe5 {[%clk 0:02:57.2]} 7... Qxe5 {[%clk 0:02:47.6]} 8. dxe5 {[%clk 0:02:58.1]}
8... Nc6 {[%clk 0:02:48.1]} 9. Nc3 {[%clk 0:02:58.7]} 9... Bf5 {[%clk
0:02:47.2]} 10. Bf4 {[%clk 0:02:57.3]} 10... Nge7 {[%clk 0:02:46.7]} 11. O-O-O
{[%clk 0:02:50.8]} 11... Ng6 {[%clk 0:02:46.9]} 12. Bg3 {[%clk 0:02:51.1]} 12...
Ngxe5 {[%clk 0:02:47.1]} 13. Bb3 {[%clk 0:02:51.1]} 13... O-O {[%clk 0:02:44]}
14. Nd5 {[%clk 0:02:51.4]} 14... Ng6 {[%clk 0:02:14.4]} 15. Nxc7 {[%clk
0:02:36.6]} 15... Rfc8 {[%clk 0:02:12.8]} 16. Nb5 {[%clk 0:02:36.7]} 16... Bg4
{[%clk 0:02:09.1]} 17. Rd2 {[%clk 0:02:34.6]} 17... Na5 {[%clk 0:02:00.3]} 18.
Nd6 {[%clk 0:02:26.3]} 18... Nxb3+ {[%clk 0:01:59.5]} 19. axb3 {[%clk
0:02:27.2]} 19... Rc6 {[%clk 0:01:55.7]} 20. Nxe4 {[%clk 0:02:25]} 20... a5
{[%clk 0:01:50.3]} 21. Nc3 {[%clk 0:02:12.8]} 21... Be6 {[%clk 0:01:48]} 22.
Rhd1 {[%clk 0:02:12.2]} 22... f5 {[%clk 0:01:43]} 23. Rd8+ {[%clk 0:02:09.8]}
23... Rxd8 {[%clk 0:01:43.2]} 24. Rxd8+ {[%clk 0:02:10.7]} 24... Kf7 {[%clk
0:01:43.7]} 25. Bd6 {[%clk 0:02:07.8]} 25... Nh4 {[%clk 0:01:35.7]} 26. g3
{[%clk 0:01:41.1]} 26... Nf3 {[%clk 0:01:35.5]} 27. h4 {[%clk 0:01:13.2]} 27...
g6 {[%clk 0:01:22.9]} 28. Bf4 {[%clk 0:01:06.8]} 28... Ke7 {[%clk 0:01:09.7]}
29. Rd3 {[%clk 0:01:06.1]} 29... Nh2 {[%clk 0:01:06.6]} 30. Nb5 {[%clk
0:01:05.6]} 30... Ng4 {[%clk 0:01:03.2]} 31. f3 {[%clk 0:01:03.7]} 31... Nh2
{[%clk 0:00:57.6]} 32. Nd4 {[%clk 0:00:58.3]} 32... Rc8 {[%clk 0:00:53.4]} 33.
Rd2 {[%clk 0:00:58]} 33... Nf1 {[%clk 0:00:44.6]} 34. Rf2 {[%clk 0:00:57.7]}
34... Bd5 {[%clk 0:00:35.7]} 35. Rxf1 {[%clk 0:00:57.5]} 35... b5 {[%clk
0:00:36]} 36. Re1+ {[%clk 0:00:57.5]} 36... Kf7 {[%clk 0:00:35.6]} 37. c3 {[%clk
0:00:57.8]} 37... a4 {[%clk 0:00:34.3]} 38. bxa4 {[%clk 0:00:57.8]} 38... bxa4
{[%clk 0:00:34.7]} 39. Kd2 {[%clk 0:00:58.2]} 39... Ra8 {[%clk 0:00:32.2]} 40.
Ra1 {[%clk 0:00:58.4]} 40... Ra6 {[%clk 0:00:29.8]} 41. Re1 {[%clk 0:00:51.1]}
41... a3 {[%clk 0:00:28.7]} 42. bxa3 {[%clk 0:00:50.9]} 42... Rxa3 {[%clk
0:00:28.1]} 43. Re5 {[%clk 0:00:51.4]} 43... Bc4 {[%clk 0:00:26.1]} 44. Rc5
{[%clk 0:00:51.5]} 44... Ra2+ {[%clk 0:00:26.4]} 45. Ke3 {[%clk 0:00:51.8]}
45... Bf1 {[%clk 0:00:24.1]} 46. Rc7+ {[%clk 0:00:52.7]} 46... Kg8 {[%clk
0:00:24.2]} 47. Be5 {[%clk 0:00:52.7]} 47... Ra1 {[%clk 0:00:17.5]} 48. Kf4
{[%clk 0:00:52.7]} 48... Ra5 {[%clk 0:00:15.7]} 49. Rg7+ {[%clk 0:00:51.8]}
49... Kf8 {[%clk 0:00:14.2]} 50. Ne6+ {[%clk 0:00:50.9]} 50... Ke8 {[%clk
0:00:14.1]} 51. Bd6 {[%clk 0:00:51.4]} 51... Ra4+ {[%clk 0:00:12.8]} 52. Kg5
{[%clk 0:00:51.8]} 52... Ra6 {[%clk 0:00:11.1]} 53. Re7# {[%clk 0:00:51.3]} 1-0

[Event "Early-Titled-Tuesday-Blitz-October-24-2023"]
[Site "Chess.com"]
[Date "2023.10.24"]
[Round "2"]
[White "NovikovaGalina"]
[Black "familijatop71"]
[Result "1-0"]
[WhiteElo "2441"]
[BlackElo "2139"]
[TimeControl "180+1"]
[EndTime "8:16:55 PDT"]
[Termination "NovikovaGalina won on time"]

1. d4 {[%clk 0:03:00.9]} 1... Nf6 {[%clk 0:02:59.2]} 2. Nc3 {[%clk 0:02:59.5]}
2... d5 {[%clk 0:02:58.9]} 3. Bf4 {[%clk 0:03:00.1]} 3... c5 {[%clk 0:02:57.6]}
4. e4 {[%clk 0:03:00]} 4... Nxe4 {[%clk 0:02:57.9]} 5. Nxe4 {[%clk 0:02:58.5]}
5... dxe4 {[%clk 0:02:58]} 6. d5 {[%clk 0:02:59.4]} 6... Nd7 {[%clk 0:02:40.2]}
7. Qd2 {[%clk 0:02:58.6]} 7... Nf6 {[%clk 0:02:38.1]} 8. O-O-O {[%clk
0:02:58.7]} 8... Qb6 {[%clk 0:02:29]} 9. f3 {[%clk 0:02:21.6]} 9... Bd7 {[%clk
0:01:49.8]} 10. g4 {[%clk 0:01:51.6]} 10... h6 {[%clk 0:01:43.1]} 11. h4 {[%clk
0:01:48]} 11... exf3 {[%clk 0:01:36.9]} 12. Nxf3 {[%clk 0:01:40.2]} 12... O-O-O
{[%clk 0:01:25.1]} 13. g5 {[%clk 0:01:36.9]} 13... hxg5 {[%clk 0:01:22.3]} 14.
Nxg5 {[%clk 0:01:37.8]} 14... Be8 {[%clk 0:00:57.7]} 15. Bh3+ {[%clk 0:01:37.1]}
15... e6 {[%clk 0:00:58]} 16. dxe6 {[%clk 0:01:27.1]} 16... Rxd2 {[%clk
0:00:55]} 17. Rxd2 {[%clk 0:01:11.3]} 17... Rxh4 {[%clk 0:00:17.3]} 18. exf7+
{[%clk 0:00:54.9]} 18... Rxh3 {[%clk 0:00:17.3]} 19. fxe8=Q+ {[%clk 0:00:53.8]}
19... Nxe8 {[%clk 0:00:16.2]} 20. Rxh3 {[%clk 0:00:50.3]} 20... Be7 {[%clk
0:00:15]} 21. Re3 {[%clk 0:00:41.4]} 21... Qf6 {[%clk 0:00:12.7]} 22. Ne6 {[%clk
0:00:32.3]} 22... b6 {[%clk 0:00:08.6]} 23. Bg5 {[%clk 0:00:32.8]} 23... Qf1+
{[%clk 0:00:08.2]} 24. Rd1 {[%clk 0:00:33.4]} 24... Qf2 {[%clk 0:00:03.7]} 25.
Red3 {[%clk 0:00:06.4]} 25... Bxg5+ {[%clk 0:00:03.8]} 26. Nxg5 {[%clk
0:00:07.3]} 26... Qf4+ {[%clk 0:00:02.8]} 27. Kb1 {[%clk 0:00:07.9]} 27... Qxg5
{[%clk 0:00:03.1]} 28. a3 {[%clk 0:00:07.3]} 28... Nf6 {[%clk 0:00:02.8]} 29.
R3d2 {[%clk 0:00:06.8]} 29... Ne4 {[%clk 0:00:02.8]} 30. Re2 {[%clk 0:00:06.1]}
30... Qf4 {[%clk 0:00:01.8]} 31. Rde1 {[%clk 0:00:06.4]} 31... Ng3 {[%clk
0:00:01.7]} 32. Re7 {[%clk 0:00:05.5]} 32... g5 {[%clk 0:00:01.2]} 33. Rg7
{[%clk 0:00:05.5]} 1-0

[Event "Early-Titled-Tuesday-Blitz-October-24-2023"]
[Site "Chess.com"]
[Date "2023.10.24"]
[Round "2"]
[White "giomar27"]
[Black "AljoschaFeuerstack"]
[Result "1/2-1/2"]
[WhiteElo "2360"]
[BlackElo "2630"]
[TimeControl "180+1"]
[EndTime "8:16:58 PDT"]
[Termination "Game drawn by repetition"]

1. d4 {[%clk 0:03:00.9]} 1... a6 {[%clk 0:02:56.8]} 2. e4 {[%clk 0:02:53.7]}
2... c6 {[%clk 0:02:56.9]} 3. Nc3 {[%clk 0:02:52.8]} 3... d5 {[%clk 0:02:57.4]}
4. e5 {[%clk 0:02:52.9]} 4... c5 {[%clk 0:02:53]} 5. dxc5 {[%clk 0:02:50.6]}
5... e6 {[%clk 0:02:52.7]} 6. Be3 {[%clk 0:02:48.3]} 6... Nd7 {[%clk 0:02:45.2]}
7. b4 {[%clk 0:02:47]} 7... Nxe5 {[%clk 0:02:39.6]} 8. Nf3 {[%clk 0:02:43.1]}
8... Nc6 {[%clk 0:02:29]} 9. a3 {[%clk 0:02:40.8]} 9... Nf6 {[%clk 0:02:25.3]}
10. Be2 {[%clk 0:02:36.2]} 10... Be7 {[%clk 0:02:16.7]} 11. O-O {[%clk
0:02:36.3]} 11... e5 {[%clk 0:02:08.8]} 12. Bg5 {[%clk 0:02:22.6]} 12... Be6
{[%clk 0:02:04.9]} 13. Na4 {[%clk 0:02:13.6]} 13... Qc7 {[%clk 0:01:56.6]} 14.
Nb6 {[%clk 0:02:12.4]} 14... Rd8 {[%clk 0:01:56.7]} 15. c3 {[%clk 0:02:08.6]}
15... O-O {[%clk 0:01:46.9]} 16. Qc2 {[%clk 0:02:03.4]} 16... h6 {[%clk
0:01:35.3]} 17. Bh4 {[%clk 0:01:58.4]} 17... g5 {[%clk 0:01:20.8]} 18. Bg3
{[%clk 0:01:58.5]} 18... Ne4 {[%clk 0:01:20.3]} 19. c4 {[%clk 0:01:49.9]} 19...
Nxg3 {[%clk 0:00:59.9]} 20. fxg3 {[%clk 0:01:45.4]} 20... d4 {[%clk 0:01:00.4]}
21. b5 {[%clk 0:01:36.6]} 21... Bxc5 {[%clk 0:00:58.3]} 22. Nd5 {[%clk
0:01:21.9]} 22... Bxd5 {[%clk 0:00:54.3]} 23. cxd5 {[%clk 0:01:21.4]} 23... Rxd5
{[%clk 0:00:42.4]} 24. Qf5 {[%clk 0:01:05.1]} 24... d3+ {[%clk 0:00:37]} 25. Kh1
{[%clk 0:01:03.4]} 25... dxe2 {[%clk 0:00:37.5]} 26. Nxg5 {[%clk 0:01:03]} 26...
exf1=Q+ {[%clk 0:00:36.1]} 27. Rxf1 {[%clk 0:01:02.3]} 27... f6 {[%clk
0:00:27.5]} 28. Qe6+ {[%clk 0:00:48.6]} 28... Kg7 {[%clk 0:00:27.8]} 29. Qxd5
{[%clk 0:00:36.8]} 29... hxg5 {[%clk 0:00:27.2]} 30. bxc6 {[%clk 0:00:33.4]}
30... Qxc6 {[%clk 0:00:27.5]} 31. Qd3 {[%clk 0:00:33.2]} 31... Rh8 {[%clk
0:00:26.2]} 32. Rd1 {[%clk 0:00:32.1]} 32... Bd4 {[%clk 0:00:26.2]} 33. Rb1
{[%clk 0:00:31.5]} 33... b5 {[%clk 0:00:25.9]} 34. a4 {[%clk 0:00:31.6]} 34...
b4 {[%clk 0:00:22.8]} 35. Qf5 {[%clk 0:00:27.7]} 35... a5 {[%clk 0:00:21.6]} 36.
h4 {[%clk 0:00:27.2]} 36... gxh4 {[%clk 0:00:19.8]} 37. Qg4+ {[%clk 0:00:27.3]}
37... Kf7 {[%clk 0:00:19.8]} 38. gxh4 {[%clk 0:00:27.9]} 38... Bf2 {[%clk
0:00:18]} 39. h5 {[%clk 0:00:23.5]} 39... Qc2 {[%clk 0:00:18]} 40. Rf1 {[%clk
0:00:21.9]} 40... Bd4 {[%clk 0:00:13.8]} 41. Qd7+ {[%clk 0:00:21.8]} 41... Kg8
{[%clk 0:00:14.2]} 42. Qe8+ {[%clk 0:00:20.6]} 42... Kg7 {[%clk 0:00:14.4]} 43.
Qe7+ {[%clk 0:00:20.8]} 43... Kg8 {[%clk 0:00:15.3]} 44. Qe8+ {[%clk 0:00:21.1]}
44... Kg7 {[%clk 0:00:14.9]} 45. Qe7+ {[%clk 0:00:21.4]} 45... Kg8 {[%clk
0:00:15.3]} 46. Qe8+ {[%clk 0:00:21.8]} 1/2-1/2